bitfinex-derivatives/quotes_SOLF0:USTF0_20250216
["timestamp","ask_amount","ask_price","bid_price","bid_amount"]
[1739734745281,0.03412633,188.65,188.63,5.3005]
[1739734748883,0.03412633,188.65,188.62,13.15486989]
[1739734749685,0.03412633,188.65,188.61,0.03376664]
[1739734751087,0.03412633,188.65,188.61,5.33486664]
[1739734751487,0.03412633,188.65,188.61,0.03376664]
[1739734753084,0.03412633,188.65,188.61,5.33486664]
[1739734754390,0.03412633,188.65,188.61,0.03376664]
[1739734754687,0.03412633,188.65,188.62,7.85406989]
[1739734755083,0.03412633,188.65,188.64,13.15436989]
[1739734755281,11.15936989,188.74,188.64,7.85406989]
[1739734755489,11.15936989,188.74,188.67,7.85406989]
[1739734756082,5.298,188.73,188.67,13.15326989]
[1739734756287,11.15936989,188.74,188.67,13.15326989]
[1739734756486,0.03813861,188.72,188.68,0.03794808]
[1739734758187,0.03813861,188.72,188.71,7.85406989]
[1739734758584,0.03813861,188.72,188.69,13.15296989]
[1739734764792,0.03813861,188.72,188.7,5.2985]
[1739734769207,0.03813861,188.72,188.71,13.15236989]
[1739734771210,3.861e-05,188.72,188.71,13.15236989]
[1739734772409,3.861e-05,188.72,188.71,5.2983]
[1739734782217,3.861e-05,188.72,188.69,18.00726989]
[1739734782417,3.861e-05,188.72,188.69,13.15276989]
[1739734783417,3.861e-05,188.72,188.69,7.85406989]
[1739734783612,3.861e-05,188.72,188.7,5.2984]
[1739734784720,3.861e-05,188.72,188.69,7.85406989]
[1739734784911,3.861e-05,188.72,188.71,5.2983]
[1739734785210,3.861e-05,188.72,188.71,13.15236989]
[1739734801829,7.85406989,188.83,188.71,7.85406989]
[1739734802124,7.85406989,188.85,188.77,7.85406989]
[1739734802526,7.85406989,188.85,188.8,5.2958]
[1739734802931,0.03664954,188.84,188.81,0.03526975]
[1739734804524,5.2952,188.82,188.81,0.03526975]
[1739734804727,7.85406989,188.78,188.71,7.85406989]
[1739734805830,0.03830718,188.76,188.73,0.03816134]
[1739734806233,0.03830718,188.76,188.73,5.33586134]
[1739734807126,0.03830718,188.76,188.73,0.03816134]
[1739734813439,5.2974,188.75,188.73,0.03816134]
[1739734813643,7.89237707,188.76,188.73,0.03816134]
[1739734813644,7.85406989,188.74,188.73,0.03816134]
[1739734813841,5.2982,188.72,188.65,13.15396989]
[1739734814538,7.85406989,188.74,188.65,13.15396989]
[1739734814743,7.85406989,188.72,188.63,13.15446989]
[1739734814939,0.03855823,188.71,188.68,0.03512499]
[1739734815643,5.2988,188.7,188.68,0.03512499]
[1739734816142,5.33695823,188.71,188.68,0.03512499]
[1739734816347,0.03855823,188.71,188.68,0.03512499]
[1739734817440,0.03855823,188.71,188.68,5.33422499]
[1739734818937,0.03855823,188.71,188.7,5.2986]
[1739734825346,18.13476989,188.82,188.69,9.50696989]
[1739734825553,12.83926989,188.82,188.75,7.85406989]
[1739734825850,18.13456989,188.82,188.77,5.2966]
[1739734826054,12.83926989,188.82,188.75,7.85406989]
[1739734826553,0.03355931,188.8,188.77,0.03713368]
[1739734827053,5.32935931,188.8,188.77,0.03713368]
[1739734827554,0.03355931,188.8,188.77,0.03713368]
[1739734831149,5.32935931,188.8,188.77,0.03713368]
[1739734831756,7.8876292,188.8,188.77,0.03713368]
[1739734831952,7.85406989,188.78,188.69,7.85406989]
[1739734832153,5.2969,188.77,188.7,5.2986]
[1739734832348,7.85406989,188.78,188.7,5.2986]
[1739734832554,7.85406989,188.76,188.69,7.85406989]
[1739734832750,5.2972,188.75,188.69,13.15286989]
[1739734833152,0.04041945,188.74,188.7,0.03375587]
[1739734833848,0.04041945,188.74,188.7,5.33235587]
[1739734834460,0.04041945,188.74,188.7,0.03375587]
[1739734834660,0.04041945,188.74,188.71,5.2982]
[1739734836855,0.04041945,188.74,188.7,0.03375587]
[1739734837061,0.04041945,188.74,188.72,5.298]
[1739734838057,0.04041945,188.74,188.71,7.85406989]
[1739734838259,0.04041945,188.74,188.7,5.33205587]
[1739734839762,0.04041945,188.74,188.7,0.03375587]
[1739734840062,0.04041945,188.74,188.71,5.2983]
[1739734840662,0.04041945,188.74,188.7,5.33215587]
[1739734841061,13.19218934,188.74,188.7,0.03375587]
[1739734841262,7.89448934,188.74,188.7,0.03375587]
[1739734841459,7.85406989,188.72,188.7,0.03375587]
[1739734842365,9.45408934,188.74,188.7,0.03375587]
[1739734843663,1.60001945,188.74,188.7,5.33235587]
[1739734843864,1.60001945,188.74,188.7,0.03375587]
[1739734846270,6.89751945,188.74,188.7,0.03375587]
[1739734846870,5.2978,188.73,188.7,0.03375587]
[1739734847368,1.60001945,188.74,188.7,0.03375587]
[1739734848470,6.89751945,188.74,188.7,0.03375587]
[1739734850170,5.2978,188.73,188.7,0.03375587]
[1739734850372,1.60001945,188.74,188.7,0.03375587]
[1739734850872,6.89761945,188.74,188.7,0.03375587]
[1739734852171,1.60001945,188.74,188.7,0.03375587]
[1739734852372,0.04041945,188.74,188.7,0.03375587]
[1739734853077,5.33791945,188.74,188.7,0.03375587]
[1739734858379,0.04041945,188.74,188.71,7.85406989]
[1739734860572,0.04041945,188.74,188.71,13.15236989]
[1739734862580,0.04041945,188.74,188.7,0.03375587]
[1739734862781,7.89448934,188.74,188.7,0.03375587]
[1739734863382,5.298,188.73,188.7,0.03375587]
[1739734864075,5.2983,188.71,188.7,0.03375587]
[1739734867983,7.89448934,188.74,188.7,0.03375587]
[1739734867984,5.33801945,188.74,188.7,0.03375587]
[1739734868286,0.04041945,188.74,188.7,0.03375587]
[1739734868486,5.33801945,188.74,188.7,0.03375587]
[1739734868887,0.04041945,188.74,188.7,0.03375587]
[1739734869787,0.04041945,188.74,188.71,7.85406989]
[1739734870785,0.04041945,188.74,188.72,5.2978]
[1739734872392,0.04041945,188.74,188.73,5.2978]
[1739734872778,0.04041945,188.74,188.73,13.15186989]
[1739734874487,0.04041945,188.74,188.73,7.85406989]
[1739734875186,0.04041945,188.74,188.71,7.85406989]
[1739734875389,0.04041945,188.74,188.7,0.03375587]
[1739734876089,5.33811945,188.74,188.7,0.03375587]
[1739734876789,5.2982,188.72,188.7,0.03375587]
[1739734877489,7.89448934,188.74,188.7,0.03375587]
[1739734877990,5.298,188.73,188.7,0.03375587]
[1739734878487,0.04041945,188.74,188.7,0.03375587]
[1739734879593,5.298,188.73,188.7,0.03375587]
[1739734879793,7.89448934,188.74,188.7,0.03375587]
[1739734880295,5.2982,188.72,188.7,0.03375587]
[1739734881296,5.2983,188.71,188.7,0.03375587]
[1739734883195,7.89448934,188.74,188.7,0.03375587]
[1739734883596,5.298,188.73,188.7,0.03375587]
[1739734884095,7.89448934,188.74,188.7,0.03375587]
[1739734886799,0.04041945,188.74,188.7,0.03375587]
[1739734887300,5.298,188.73,188.7,0.03375587]
[1739734888301,0.04041945,188.74,188.7,0.03375587]
[1739734888902,7.89448934,188.74,188.7,0.03375587]
[1739734890404,5.298,188.73,188.7,0.03375587]
[1739734893308,5.33811945,188.74,188.7,0.03375587]
[1739734893502,0.04041945,188.74,188.7,0.03375587]
[1739734894498,5.33811945,188.74,188.7,0.03375587]
[1739734895509,0.04041945,188.74,188.7,5.33225587]
[1739734895709,0.04041945,188.74,188.71,7.85406989]
[1739734896610,0.04041945,188.74,188.72,5.2978]
[1739734897915,0.04041945,188.74,188.73,13.15186989]
[1739734904914,9.50286989,188.84,188.73,7.85406989]
[1739734905217,5.295,188.83,188.77,13.15056989]
[1739734905419,7.85406989,188.84,188.77,7.85406989]
[1739734906116,0.03825796,188.82,188.79,0.03352301]
[1739734906319,13.18762785,188.82,188.79,0.03352301]
[1739734906921,7.89232785,188.82,188.79,0.03352301]
[1739734907522,5.2955,188.81,188.79,0.03352301]
[1739734907820,0.03825796,188.82,188.79,0.03352301]
[1739734908013,0.03825796,188.82,188.79,7.8875929]
[1739734908522,0.03825796,188.82,188.79,13.1833929]
[1739734908722,0.03825796,188.82,188.79,7.8875929]
[1739734909424,0.03825796,188.82,188.79,13.1835929]
[1739734909623,0.03825796,188.82,188.79,7.8875929]
[1739734910327,0.03825796,188.82,188.79,13.1835929]
[1739734910726,0.03825796,188.82,188.79,7.8875929]
[1739734912933,0.03825796,188.82,188.79,0.03352301]
[1739734913135,7.89232785,188.82,188.79,0.03352301]
[1739734913437,5.2957,188.81,188.79,0.03352301]
[1739734913933,7.89232785,188.82,188.79,0.03352301]
[1739734915029,5.2958,188.8,188.79,0.03352301]
[1739734920538,13.14986989,188.8,188.79,0.03352301]
[1739734923340,5.2958,188.8,188.79,0.03352301]
[1739734926744,13.14986989,188.8,188.79,0.03352301]
[1739734931547,5.2958,188.8,188.79,0.03352301]
[1739734936152,13.14986989,188.8,188.79,0.03352301]
[1739734937354,5.297,188.76,188.71,7.85406989]
[1739734937846,7.85406989,188.78,188.71,7.85406989]
[1739734938256,7.85406989,188.76,188.69,7.85406989]
[1739734938453,7.89046281,188.76,188.73,0.03615127]
[1739734938849,5.2977,188.74,188.73,0.03615127]
[1739734939154,13.15176989,188.74,188.73,0.03615127]
[1739734939955,5.2977,188.74,188.73,0.03615127]
[1739734942058,5.33349292,188.76,188.73,0.03615127]
[1739734943057,0.03639292,188.76,188.73,0.03615127]
[1739734943258,5.2973,188.75,188.73,0.03615127]
[1739734944455,5.33339292,188.76,188.73,0.03615127]
[1739734945958,0.03639292,188.76,188.73,0.03615127]
[1739734946158,5.2972,188.75,188.73,0.03615127]
[1739734946963,5.33339292,188.76,188.73,0.03615127]
[1739734957668,0.03639292,188.76,188.75,13.15126989]
[1739734957966,0.03639292,188.76,188.75,7.85406989]
[1739734960268,0.03639292,188.76,188.73,0.03615127]
[1739734961468,0.03639292,188.76,188.73,7.89022116]
[1739734962465,0.03639292,188.76,188.75,7.85406989]
[1739734964168,0.03639292,188.76,188.73,7.89022116]
[1739734966570,0.03639292,188.76,188.73,13.18792116]
[1739734968869,0.03639292,188.76,188.75,7.85406989]
[1739734969871,0.03639292,188.76,188.73,7.89022116]
[1739734974376,5.33329292,188.76,188.73,7.89022116]
[1739734974583,0.03639292,188.76,188.73,0.03615127]
[1739734975780,5.2974,188.75,188.73,0.03615127]
[1739734976682,0.03639292,188.76,188.73,0.03615127]
[1739734977184,0.03639292,188.76,188.73,7.89022116]
[1739734978386,0.03639292,188.76,188.73,13.18792116]
[1739734981585,0.03639292,188.76,188.73,7.89022116]
[1739734984190,0.03639292,188.76,188.73,0.03615127]
[1739734984387,0.03639292,188.76,188.74,5.2972]
[1739734984590,0.03639292,188.76,188.73,7.89022116]
[1739734987690,0.03639292,188.76,188.75,7.85406989]
[1739734992798,0.03639292,188.76,188.73,13.18792116]
[1739734993296,0.03639292,188.76,188.74,5.2974]
[1739734994002,0.03639292,188.76,188.73,7.89022116]
[1739734994195,0.03639292,188.76,188.73,13.18792116]
[1739734994396,0.03639292,188.76,188.73,7.89022116]
[1739734994900,0.03639292,188.76,188.74,5.2972]
[1739734995196,0.03639292,188.76,188.73,7.89022116]
[1739734995402,0.03639292,188.76,188.75,7.85406989]
[1739734996301,0.03639292,188.76,188.75,13.15126989]
[1739735003904,0.03639292,188.76,188.75,7.85406989]
[1739735004104,0.03639292,188.76,188.73,0.03615127]
[1739735004506,0.03639292,188.76,188.73,7.89022116]
[1739735004707,0.03639292,188.76,188.75,7.85406989]
[1739735006112,0.03639292,188.76,188.75,13.15126989]
[1739735065543,0.03639292,188.76,188.75,7.85406989]
[1739735065744,0.03639292,188.76,188.73,7.89022116]
[1739735065951,0.03639292,188.76,188.71,7.85406989]
[1739735066949,5.33329292,188.76,188.71,7.85406989]
[1739735067250,5.33329292,188.76,188.72,0.03873116]
[1739735068946,0.03639292,188.76,188.72,0.03873116]
[1739735071650,1.58889292,188.76,188.72,0.03873116]
[1739735072453,6.88579292,188.76,188.72,0.03873116]
[1739735075653,1.58889292,188.76,188.72,0.03873116]
[1739735076461,6.88589292,188.76,188.72,0.03873116]
[1739735079363,1.58889292,188.76,188.72,0.03873116]
[1739735084156,6.88589292,188.76,188.72,0.03873116]
[1739735084574,1.58889292,188.76,188.72,0.03873116]
[1739735092070,1.58889292,188.76,188.72,5.33673116]
[1739735092670,0.03639292,188.76,188.74,5.2975]
[1739735092869,0.03639292,188.76,188.75,7.85406989]
[1739735094169,0.03639292,188.76,188.75,13.15126989]
[1739735102272,0.03639292,188.76,188.75,5.2972]
[1739735104474,0.03639292,188.76,188.74,5.2974]
[1739735106778,0.03639292,188.76,188.75,5.2972]
[1739735107676,0.03639292,188.76,188.74,5.2974]
[1739735109078,5.33349292,188.76,188.72,0.03873116]
[1739735109371,0.03639292,188.76,188.72,0.03873116]
[1739735109574,5.2983,188.71,188.65,7.85406989]
[1739735109878,7.85406989,188.71,188.64,63.24091778]
[1739735110474,7.85406989,188.71,188.65,7.85406989]
[1739735110772,7.85406989,188.71,188.64,63.24091778]
[1739735110773,0.0367481,188.7,188.69,7.85406989]
[1739735111278,0.03901687,188.71,188.69,7.85406989]
[1739735111476,0.03901687,188.71,188.7,7.85406989]
[1739735111676,1.6432,188.78,188.71,5.298]
[1739735111880,1.6687,188.82,188.75,7.85406989]
[1739735112079,0.03982111,188.76,188.75,7.85406989]
[1739735112277,7.85406989,188.81,188.75,7.85406989]
[1739735112579,0.04007162,188.77,188.75,7.85406989]
[1739735113976,0.04007162,188.77,188.75,13.15096989]
[1739735115079,0.04007162,188.77,188.75,7.85406989]
[1739735115277,0.04007162,188.77,188.76,5.2969]
[1739735119274,0.04007162,188.77,188.75,7.85406989]
[1739735121080,0.04007162,188.77,188.73,7.89399612]
[1739735121279,7.85406989,188.75,188.73,0.03992623]
[1739735121974,5.2975,188.74,188.73,0.03992623]
[1739735122579,7.85406989,188.75,188.67,7.85406989]
[1739735122778,7.85406989,188.73,188.65,7.85406989]
[1739735122979,7.85406989,188.71,188.65,7.85406989]
[1739735123177,5.299,188.69,188.65,7.85406989]
[1739735123786,5.33740279,188.69,188.65,7.88770026]
[1739735126482,5.2992,188.68,188.65,7.88770026]
[1739735126687,0.03840279,188.69,188.65,7.88770026]
[1739735126688,0.03840279,188.69,188.65,0.03363037]
[1739735127991,7.89247268,188.69,188.65,0.03363037]
[1739735128184,5.2997,188.66,188.65,0.03363037]
[1739735128881,7.89247268,188.69,188.65,0.03363037]
[1739735129390,0.03840279,188.69,188.65,7.88770026]
[1739735129786,5.33730279,188.69,188.65,7.88770026]
[1739735131988,5.2994,188.68,188.65,0.03363037]
[1739735133693,0.03840279,188.69,188.65,0.03363037]
[1739735133999,7.85406989,188.67,188.65,0.03363037]
[1739735135191,5.2997,188.66,188.65,0.03363037]
[1739735136294,6.8481,188.68,188.65,0.03363037]
[1739735136594,0.03840279,188.69,188.65,0.03363037]
[1739735138590,5.2993,188.68,188.65,0.03363037]
[1739735140598,5.2997,188.66,188.65,0.03363037]
[1739735151011,5.2995,188.67,188.65,0.03363037]
[1739735152209,5.2997,188.66,188.65,0.03363037]
[1739735152712,7.89247268,188.69,188.65,0.03363037]
[1739735153207,13.19157268,188.69,188.65,0.03363037]
[1739735153407,7.89247268,188.69,188.65,0.03363037]
[1739735154800,5.2997,188.66,188.65,0.03363037]
[1739735163824,5.2995,188.67,188.65,0.03363037]
[1739735164319,0.03840279,188.69,188.65,0.03363037]
[1739735164514,5.2993,188.68,188.65,0.03363037]
[1739735165019,5.2992,188.68,188.65,0.03363037]
[1739735165622,0.03840279,188.69,188.65,0.03363037]
[1739735165815,5.2992,188.68,188.65,0.03363037]
[1739735166217,0.03840279,188.69,188.65,0.03363037]
[1739735166426,7.89247268,188.69,188.65,0.03363037]
[1739735166622,5.2997,188.66,188.65,0.03363037]
[1739735167023,7.89247268,188.69,188.65,0.03363037]
[1739735167224,5.2997,188.66,188.65,0.03363037]
[1739735171927,5.2994,188.68,188.65,0.03363037]
[1739735172333,0.03840279,188.69,188.65,5.33363037]
[1739735173327,5.33730279,188.69,188.65,5.33363037]
[1739735175229,5.33730279,188.69,188.65,0.03363037]
[1739735176135,5.2992,188.68,188.65,0.03363037]
[1739735178336,5.33730279,188.69,188.65,0.03363037]
[1739735178833,0.03840279,188.69,188.65,0.03363037]
[1739735179337,5.33730279,188.69,188.65,0.03363037]
[1739735180435,5.33730279,188.69,188.65,5.33353037]
[1739735181439,0.03840279,188.69,188.65,5.33353037]
[1739735182539,5.33730279,188.69,188.65,5.33353037]
[1739735183642,5.33730279,188.69,188.66,5.2997]
[1739735183937,0.03840279,188.69,188.66,5.2997]
[1739735184140,0.03840279,188.69,188.68,5.2992]
[1739735184440,0.03840279,188.69,188.65,7.88770026]
[1739735184639,0.03840279,188.69,188.66,5.2995]
[1739735185241,0.03840279,188.69,188.68,5.2992]
[1739735190941,5.2971,188.76,188.71,5.2981]
[1739735191145,7.85406989,188.77,188.71,13.15216989]
[1739735191841,5.297,188.76,188.71,13.15216989]
[1739735192041,5.33200345,188.76,188.72,0.03432828]
[1739735193748,5.33200345,188.76,188.72,5.33232828]
[1739735194349,0.03500345,188.76,188.73,5.2975]
[1739735196341,0.03500345,188.76,188.74,5.2974]
[1739735196651,0.03500345,188.76,188.73,7.85406989]
[1739735196952,0.03500345,188.76,188.75,5.2972]
[1739735197354,0.03500345,188.76,188.75,13.15126989]
[1739735211369,3.45e-06,188.76,188.75,13.15126989]
[1739735216669,3.45e-06,188.76,188.75,7.85406989]
[1739735219968,3.45e-06,188.76,188.75,13.15126989]
[1739735220271,3.4043,188.9,188.75,13.15126989]
[1739735220272,58.15938126,188.91,188.75,8.91367253]
[1739735220568,58.15938126,188.91,188.87,7.85406989]
[1739735221372,58.15938126,188.91,188.87,7.89077051]
[1739735221373,72.07222444,188.9,188.87,7.89077051]
[1739735223371,72.07222444,188.9,188.87,0.03670062]
[1739735224775,0.03695151,188.91,188.87,0.03670062]
[1739735225475,5.32965151,188.91,188.87,0.03670062]
[1739735226170,5.32975151,188.91,188.87,7.89077051]
[1739735227274,5.293,188.9,188.87,7.89077051]
[1739735229176,5.32975151,188.91,188.87,7.89077051]
[1739735231578,0.03695151,188.91,188.89,7.85406989]
[1739735232474,0.03695151,188.91,188.9,5.293]
[1739735232679,0.03695151,188.91,188.89,7.85406989]
[1739735234277,0.03695151,188.91,188.87,7.89077051]
[1739735235079,5.32985151,188.91,188.87,7.89077051]
[1739735235774,0.03695151,188.91,188.87,7.89077051]
[1739735236173,0.03695151,188.91,188.87,13.18457051]
[1739735236478,0.03695151,188.91,188.87,7.89077051]
[1739735236680,5.32965151,188.91,188.87,7.89077051]
[1739735238081,0.03695151,188.91,188.9,5.293]
[1739735239483,5.2905,188.99,188.89,7.85406989]
[1739735239683,5.2905,188.99,188.94,7.85406989]
[1739735240688,0.03416251,188.98,188.95,0.03696021]
[1739735242689,0.03416251,188.98,188.96,7.85406989]
[1739735244290,0.03416251,188.98,188.97,5.291]
[1739735247291,1.5423,189.08,188.96,7.85406989]
[1739735247494,5.2883,189.07,189.01,13.14396989]
[1739735248088,1.5423,189.08,188.96,1.5446]
[1739735248089,1.5423,189.08,189.03,7.85406989]
[1739735248493,0.03927741,189.07,189.04,0.0349734]
[1739735250592,0.03927741,189.07,189.05,7.85406989]
[1739735253989,0.03927741,189.07,189.05,13.14286989]
[1739735254390,5.32757741,189.07,189.05,7.85406989]
[1739735255801,5.32757741,189.07,189.04,0.0349734]
[1739735259498,5.2885,189.06,189.04,0.0349734]
[1739735261301,5.32757741,189.07,189.04,0.0349734]
[1739735261600,0.03927741,189.07,189.04,0.0349734]
[1739735262002,5.2886,189.06,189.04,0.0349734]
[1739735263202,0.03927741,189.07,189.04,0.0349734]
[1739735263398,5.32747741,189.07,189.04,0.0349734]
[1739735265406,5.2885,189.06,189.04,0.0349734]
[1739735266100,5.32757741,189.07,189.04,0.0349734]
[1739735267906,0.03927741,189.07,189.04,0.0349734]
[1739735268806,5.32747741,189.07,189.04,0.0349734]
[1739735269005,0.03927741,189.07,189.05,7.85406989]
[1739735271205,5.32747741,189.07,189.05,7.85406989]
[1739735272108,0.03927741,189.07,189.05,13.14266989]
[1739735272606,0.03927741,189.07,189.05,7.85406989]
[1739735273003,0.03927741,189.07,189.06,5.2885]
[1739735283011,12.69976989,189.15,189.1,5.2873]
[1739735283012,10.1318,189.15,189.1,5.2873]
[1739735283313,3.1995,189.15,189.11,7.85406989]
[1739735284008,11.05356989,189.15,189.09,7.85406989]
[1739735284212,11.09119678,189.15,189.11,0.03842968]
[1739735284408,5.2868,189.13,189.11,0.03842968]
[1739735284613,11.09119678,189.15,189.11,0.03842968]
[1739735285518,5.2865,189.14,189.11,0.03842968]
[1739735285717,11.09119678,189.15,189.11,0.03842968]
[1739735285918,7.85406989,189.13,189.05,7.85406989]
[1739735286114,5.2878,189.09,189.05,7.85406989]
[1739735287018,5.32384194,189.09,189.05,7.89124246]
[1739735289623,5.288,189.08,189.05,7.89124246]
[1739735290126,5.32374194,189.09,189.05,7.89124246]
[1739735290824,0.03604194,189.09,189.07,7.85406989]
[1739735291318,0.03604194,189.09,189.08,5.288]
[1739735294926,58.15938126,189.16,189.12,5.2868]
[1739735295125,58.15938126,189.16,189.13,7.85406989]
[1739735296025,58.19831612,189.16,189.13,7.88750731]
[1739735296631,0.03893486,189.16,189.13,7.88750731]
[1739735297525,0.03893486,189.16,189.15,7.85406989]
[1739735299131,0.03893486,189.16,189.15,13.14006989]
[1739735299930,0.03893486,189.16,189.15,7.85406989]
[1739735301931,0.03893486,189.16,189.13,7.88750731]
[1739735303931,0.03893486,189.16,189.15,7.85406989]
[1739735305733,0.03893486,189.16,189.15,13.14006989]
[1739735305921,0.03893486,189.16,189.15,7.85406989]
[1739735310838,0.03893486,189.16,189.13,7.88750731]
[1739735311932,5.32473486,189.16,189.13,7.88750731]
[1739735313237,0.03893486,189.16,189.13,7.88750731]
[1739735313739,0.03893486,189.16,189.15,7.85406989]
[1739735314637,0.03893486,189.16,189.15,13.14006989]
[1739735325451,0.03893486,189.16,189.15,7.85406989]
[1739735326548,0.03893486,189.16,189.15,13.14006989]
[1739735326748,0.03893486,189.16,189.15,7.85406989]
[1739735328052,0.03893486,189.16,189.15,13.14006989]
[1739735330951,1.6465,189.23,189.18,5.2851]
[1739735331148,1.6465,189.23,189.18,13.13916989]
[1739735332152,0.03747024,189.22,189.19,0.03405322]
[1739735332553,0.03747024,189.22,189.2,7.85406989]
[1739735332756,58.15938126,189.27,189.2,7.85406989]
[1739735332954,58.15938126,189.27,189.25,7.85406989]
[1739735333954,0.03583983,189.28,189.25,7.85406989]
[1739735338764,5.31823983,189.28,189.25,7.85406989]
[1739735339063,5.31823983,189.28,189.24,0.03534396]
[1739735339064,0.03583983,189.28,189.24,0.03534396]
[1739735339562,5.2827,189.27,189.24,0.03534396]
[1739735341464,5.31823983,189.28,189.25,7.85406989]
[1739735341662,0.03583983,189.28,189.25,7.85406989]
[1739735342059,5.31843983,189.28,189.25,7.85406989]
[1739735343067,5.2829,189.26,189.25,7.85406989]
[1739735343558,0.03583983,189.28,189.25,7.85406989]
[1739735344163,5.31843983,189.28,189.25,7.85406989]
[1739735344966,0.03583983,189.28,189.25,7.85406989]
[1739735345261,0.03583983,189.28,189.27,7.85406989]
[1739735346859,0.03583983,189.28,189.27,13.13676989]
[1739735348465,4.8735,189.35,189.27,13.13676989]
[1739735348466,5.2799,189.37,189.3,5.2816]
[1739735348663,5.2799,189.37,189.33,7.85406989]
[1739735349372,0.22013,189.38,189.33,7.85406989]
[1739735349562,0.22013,189.38,189.33,7.89296348]
[1739735349963,0.22013,189.38,189.35,7.85406989]
[1739735350768,0.22013,189.38,189.37,7.85406989]
[1739735351374,58.15938126,189.4,189.37,7.85406989]
[1739735352569,5.2807,189.34,189.33,0.03889359]
[1739735352769,5.2807,189.34,189.22,118.54]
[1739735352770,7.85406989,189.34,189.27,7.85406989]
[1739735352975,7.85406989,189.32,189.25,7.85406989]
[1739735353569,5.2821,189.3,189.25,7.85406989]
[1739735353772,7.85406989,189.32,189.25,7.85406989]
[1739735354078,5.2824,189.28,189.26,0.03955028]
[1739735354673,5.2826,189.28,189.26,0.03955028]
[1739735354870,0.03640696,189.29,189.26,0.03955028]
[1739735356077,5.2827,189.27,189.26,0.03955028]
[1739735356777,5.2837,189.24,189.21,7.85406989]
[1739735357081,7.85406989,189.26,189.19,7.85406989]
[1739735357379,7.85406989,189.22,189.15,9.39696989]
[1739735357581,7.85406989,189.22,189.15,7.85406989]
[1739735357880,5.2844,189.21,189.17,7.85406989]
[1739735358074,0.03848766,189.2,189.17,7.88758143]
[1739735358970,0.03848766,189.2,189.17,0.03351154]
[1739735359684,0.03848766,189.2,189.17,7.88758143]
[1739735359978,0.03848766,189.2,189.19,7.85406989]
[1739735361478,7.85406989,189.3,189.22,5.284]
[1739735361782,7.85406989,189.3,189.24,7.85406989]
[1739735362081,5.2821,189.29,189.24,7.85406989]
[1739735362782,0.03706048,189.28,189.25,0.03923373]
[1739735365282,0.03706048,189.28,189.26,5.2829]
[1739735365484,0.03706048,189.28,189.25,0.03923373]
[1739735366081,0.03706048,189.28,189.27,5.2827]
[1739735367382,194.0,189.37,189.3,5.2816]
[1739735367583,194.0,189.37,189.26,13.77537562]
[1739735367779,199.2801,189.37,189.27,1.6025]
[1739735367978,194.0,189.37,189.29,12.21167562]
[1739735368278,58.15938126,189.38,189.29,12.21167562]
[1739735368482,58.15938126,189.41,189.34,5.2805]
[1739735368878,58.15938126,189.41,189.32,12.24566003]
[1739735369074,58.15938126,189.41,189.35,5.2803]
[1739735369279,58.15938126,189.41,189.32,12.21167562]
[1739735369479,58.15938126,189.41,189.36,0.04060631]
[1739735370881,63.43818126,189.41,189.36,0.04060631]
[1739735371985,58.15938126,189.41,189.36,0.04060631]
[1739735372582,12.21167562,189.42,189.36,0.04060631]
[1739735372780,5.2799,189.37,189.36,0.04060631]
[1739735375590,5.2796,189.38,189.36,0.04060631]
[1739735376791,195.6354,189.43,189.36,0.04060631]
[1739735377391,5.2798,189.38,189.36,0.04060631]
[1739735378192,195.6354,189.43,189.36,0.04060631]
[1739735378390,5.2799,189.37,189.36,0.04060631]
[1739735380788,195.6354,189.43,189.36,0.04060631]
[1739735382193,5.2799,189.37,189.36,0.04060631]
[1739735382989,195.6354,189.43,189.36,0.04060631]
[1739735383595,5.2799,189.37,189.36,0.04060631]
[1739735385096,12.21167562,189.4,189.28,5.2822]
[1739735385296,12.21167562,189.4,189.27,1.6025]
[1739735385297,12.21167562,189.37,189.27,1.6025]
[1739735386097,0.03717488,189.34,189.3,0.03853462]
[1739735386501,5.31797488,189.34,189.3,0.03853462]
[1739735387297,5.2811,189.33,189.3,0.03853462]
[1739735387494,12.21167562,189.31,189.17,12.21167562]
[1739735387699,12.21167562,189.31,189.19,1.5513]
[1739735387999,12.21167562,189.34,189.2,12.21167562]
[1739735388199,12.21167562,189.34,189.23,12.21167562]
[1739735388600,0.03725086,189.3,189.27,0.03907157]
[1739735392601,0.03725086,189.3,189.27,5.32147157]
[1739735393312,0.03725086,189.3,189.28,5.2823]
[1739735393508,0.03725086,189.3,189.27,0.03907157]
[1739735393709,0.03725086,189.3,189.28,5.2821]
[1739735394214,0.03725086,189.3,189.27,0.03907157]
[1739735394512,0.03725086,189.3,189.29,5.2821]
[1739735395008,0.03725086,189.3,189.29,17.49377562]
[1739735395209,5.2796,189.38,189.32,5.2811]
[1739735395406,12.21167562,189.4,189.29,12.21167562]
[1739735395608,17.49097562,189.4,189.33,5.2809]
[1739735395808,12.43844562,189.4,189.33,5.2809]
[1739735396013,12.43844562,189.4,189.29,12.21167562]